fUSD/lending_fUSD_20250331
["ID","MTS","AMOUNT","RATE_DAILY","PERIOD"]
[356905717,1743413449704,-350.0,0.0001741,3]
[356905718,1743413449714,-82703.8055202,0.00019,2]
[356905719,1743413449724,-999.99,0.00019339,2]
[356905720,1743413449734,-437.75562445,0.00019461,2]
[356905721,1743413449743,-171.32800912,0.0001964,2]
[356905722,1743413449753,-2935.0,0.0002,2]
[356905723,1743413449762,-150.99,0.0002,2]
[356905724,1743413449772,-159.56,0.0002,2]
[356905725,1743413449781,-150.99,0.0002,2]
[356905726,1743413449791,-151.37,0.0002,2]
[356905727,1743413449805,-151.37,0.0002,2]
[356905728,1743413449815,-151.37,0.0002,2]
[356905729,1743413449824,-151.37,0.0002,2]
[356905730,1743413449833,-151.37,0.0002,2]
[356905731,1743413449843,-151.37,0.0002,2]
[356905732,1743413449852,-500.0,0.00020452,2]
[356905733,1743413449861,-171.32800912,0.00022009,2]
[356905734,1743413449870,-350.0,0.00023188,3]
[356905735,1743413449879,-173.05,0.00023836,2]
[356905736,1743413449888,-5000.0025457,0.00024,5]
[356905737,1743413449898,-171.32800912,0.00024379,2]
[356905738,1743413449907,-271011.978517,0.000249,2]
[356905739,1743413449916,-160.11392448,0.000249,2]
[356905740,1743413449925,-171.32800912,0.00026749,2]
[356905741,1743413449935,-173.53,0.00026849,2]
[356905742,1743413449944,-250.0,0.00029165,2]
[356905743,1743413449954,-395.28794812,0.00029538,2]
[356905744,1743413449964,-413.0417903,0.0003,2]
[356905745,1743413449973,-200.0,0.00030397,2]
[356905746,1743413450069,-150.0,0.00031597,2]
[356905747,1743413450088,-173.53,0.00032646,2]
[356905748,1743413450098,-230.0,0.0003346,30]
[356905749,1743413450108,-203.88,0.000335,2]
[356905750,1743413450118,-464.65957566,0.000339,2]
[356905751,1743413450127,-151.0,0.00034599,2]
[356905752,1743413450137,-173.53,0.00038443,2]
[356905753,1743413450146,-518.3426861,0.0004,30]
[356905754,1743413450155,-174.63,0.000401,2]
[356905755,1743413450165,-157.78,0.00041827,120]
[356905756,1743413450174,-2375.54121398,0.00041935,11]
[356905757,1743413450183,-318.48,0.00043057,2]
[356905758,1743413450193,-5553.0,0.000434,5]
[356905759,1743413450202,-152.0,0.00043765,3]
[356905760,1743413450211,-500.0,0.00043931,120]
[356905761,1743413450220,-963.3,0.00044,2]
[356905762,1743413450230,-3000.0,0.00044,2]
[356905763,1743413450239,-576.0,0.00044,2]
[356905764,1743413450248,-1745.87212176,0.00044,30]
[356905765,1743413450258,-1109.86457147,0.00044,5]
[356905766,1743413450267,-1701.26,0.00044,14]
[356905767,1743413450276,-493.0,0.00044082,2]
[356905768,1743413450286,-173.53,0.00044239,2]
[356905769,1743413450295,-318.756,0.000448,120]
[356905770,1743413450304,-318.757,0.000448,120]
[356905771,1743413450314,-318.756,0.000448,120]
[356905772,1743413450323,-318.757,0.000448,120]
[356905773,1743413450335,-318.757,0.000448,120]
[356905774,1743413450346,-150.0,0.000448,2]
[356905775,1743413450355,-163.25207,0.0004511,5]
[356905776,1743413450364,-318.48,0.00045321,2]
[356905777,1743413450374,-1000.0,0.000454,7]
[356905778,1743413450384,-2767.03,0.00045468,2]
[356905779,1743413450393,-1000.0,0.00045475,2]
[356905780,1743413450402,-341.91,0.00045505,2]
[356905781,1743413450413,-164.51,0.00045671,2]
[356905782,1743413450423,-293.28,0.00045699,2]
[356905783,1743413450432,-1002.91144879,0.00046,2]
[356905784,1743413450442,-6018.63,0.00046455,2]
[356905785,1743413450451,-1000.0,0.000465,2]
[356905786,1743413450460,-297.319,0.00046932,78]
[356905787,1743413450470,-44500.06,0.000475,90]
[356905788,1743413450479,-742.7628013,0.0004753,4]
[356905789,1743413450488,-318.48,0.00047585,2]
[356905790,1743413450498,-1701.26,0.000476,14]
[356905791,1743413450507,-152.0,0.00047957,4]
[356905792,1743413450517,-576.05263324,0.00047973,120]
[356905793,1743413450527,-77537.1,0.00048,2]
[356905794,1743413450536,-1000.0,0.00048,120]
[356905795,1743413450545,-551.60637,0.0004841,84]
[356905796,1743413450554,-957.97049331,0.0004842,2]
[356905797,1743413450563,-593.88,0.000486,37]
[356905798,1743413450573,-1187.76,0.000487,37]
[356905799,1743413450583,-3599.42281663,0.0004871,120]
[356905800,1743413450592,-2000.0,0.00048755,3]
[356905801,1743413450601,-206.81792,0.000488,7]
[356905802,1743413450611,-393.16616626,0.000488,20]
[356905803,1743413450620,-151.37,0.0004889,2]
[356905804,1743413450629,-1573.9279,0.0004889,2]
[356905805,1743413450639,-1000.0,0.0004889,2]
[356905806,1743413450648,-4111.6415,0.0004889,2]
[356905807,1743413450657,-5000.0,0.000489,120]
[356905808,1743413450667,-194.55346623,0.000489,34]
[356905809,1743413450676,-503042.27861317,0.000489,7]
[356905810,1743413450685,-300.0,0.000489,120]
[356905811,1743413450695,-151.0,0.000489,14]
[356905812,1743413450704,-173.495788,0.000489,14]
[356905813,1743413450713,-151.0,0.000489,14]
[356905814,1743413450722,-151.0,0.000489,14]
[356905815,1743413450731,-151.0,0.000489,14]
[356905816,1743413450740,-151.0,0.000489,14]
[356905817,1743413450749,-800.39,0.00048904,30]
[356905818,1743413450758,-253.2,0.00048904,30]
[356905819,1743413450767,-151.37,0.0004899,2]
[356905820,1743413450777,-151.37,0.0004899,2]
[356905821,1743413450786,-151.37,0.0004899,2]
[356905822,1743413450795,-151.37,0.0004899,2]
[356905823,1743413450804,-151.37,0.0004899,2]
[356905824,1743413450813,-151.37,0.0004899,2]
[356905825,1743413450822,-414.49460697,0.00048999,31]
[356905826,1743413450832,-436.483469,0.00048999,7]
[356905827,1743413450841,-172.89382046,0.00048999,120]
[356905828,1743413450851,-448.76562975,0.00048999,120]
[356905829,1743413450860,-399.42358129,0.00048999,120]
[356905830,1743413450869,-344.72981473,0.00048999,120]
[356905831,1743413450878,-500.0,0.00048999,120]
[356905832,1743413450887,-500.0,0.00048999,120]
[356905833,1743413450897,-344.12281091,0.00048999,120]
[356905834,1743413450906,-150.0,0.00048999,120]
[356905835,1743413450916,-2629.44266214,0.00049,120]
[356905836,1743413450925,-1766.0,0.00049,7]
[356905837,1743413450935,-4119081.60244952,0.00049,2]
[356905838,1743413450944,-487.88978709,0.00049,30]
[356905839,1743413450954,-1000000.0,0.00049,120]
[356905840,1743413450963,-77537.1,0.00049,2]
[356905841,1743413450973,-151.0,0.00049,14]
[356905842,1743413450982,-151.809987,0.00049,14]
[356905843,1743413450991,-154.635897,0.00049,14]
[356905844,1743413451000,-151.895511,0.00049,14]
[356905845,1743413451009,-2501.298206,0.00049,14]
[356905846,1743413451018,-151.0,0.00049,14]
[356905847,1743413451027,-151.0,0.00049,14]
[356905848,1743413451037,-152.453286,0.00049,14]
[356905849,1743413451047,-151.0,0.00049,14]
[356905850,1743413451056,-232.522207,0.00049,14]
[356905851,1743413451065,-151.0,0.00049,14]
[356905852,1743413451075,-300.064274,0.00049,14]
[356905853,1743413451084,-158.561551,0.00049,14]
[356905854,1743413451094,-151.605708,0.00049,14]
[356905855,1743413451103,-151.877419,0.00049,14]
[356905856,1743413451113,-151.0,0.00049,14]
[356905857,1743413451122,-151.0,0.00049,14]
[356905858,1743413451132,-151.0,0.00049,14]
[356905859,1743413451141,-152.712861,0.00049,14]
[356905860,1743413451150,-152.911864,0.00049,14]
[356905861,1743413451159,-151.0,0.00049,14]
[356905862,1743413451169,-1125.023096,0.00049,14]
[356905863,1743413451178,-1125.023096,0.00049,14]
[356905864,1743413451187,-1125.023096,0.00049,14]
[356905865,1743413451197,-1125.023096,0.00049,14]
[356905866,1743413451206,-153.176722,0.00049,14]
[356905867,1743413451215,-151.0,0.00049,14]
[356905868,1743413451225,-151.0,0.00049,14]
[356905869,1743413451235,-151.0,0.00049,14]
[356905870,1743413451244,-180.382885,0.00049,14]
[356905871,1743413451254,-151.0,0.00049,14]
[356905872,1743413451264,-245.783158,0.00049,14]
[356905873,1743413451273,-245.783158,0.00049,14]
[356905874,1743413451282,-245.783158,0.00049,14]
[356905875,1743413451292,-245.783158,0.00049,14]
[356905876,1743413451301,-233.953209,0.00049,14]
[356905877,1743413451310,-233.953209,0.00049,14]
[356905878,1743413451320,-233.953209,0.00049,14]
[356905879,1743413451333,-233.953209,0.00049,14]
[356905880,1743413451343,-151.0,0.00049,14]
[356905881,1743413451352,-82703.8055202,0.00049,30]
[356905882,1743413451362,-151.0,0.00049,14]
[356905883,1743413451372,-156.55656,0.00049,14]
[356905884,1743413451381,-1513.2271785,0.00049231,2]
[356905885,1743413451390,-1547.6434212,0.00049231,2]
[356905886,1743413451399,-1582.059664,0.00049231,2]
[356905887,1743413451410,-1616.4759067,0.00049231,2]
[356905888,1743413451419,-1650.8921495,0.00049231,2]
[356905889,1743413451428,-1685.3083922,0.00049231,2]
[356905890,1743413451437,-166.66,0.00049298,2]
[356905891,1743413451446,-307.0,0.00049315,30]
[356905892,1743413451455,-300.0,0.00049315,30]
[356905893,1743413451465,-300.0,0.00049315,30]
[356905894,1743413451474,-500.0,0.00049315,3]
[356905895,1743413451484,-500.0,0.00049315,120]
[356905896,1743413451493,-500.0,0.00049315,120]
[356905897,1743413451503,-500.0,0.00049315,120]
[356905898,1743413451512,-505.73745427,0.00049315,120]
[356905899,1743413451521,-500.0,0.00049315,120]
[356905900,1743413451531,-500.0,0.00049315,120]
[356905901,1743413451540,-506.52304539,0.00049315,120]
[356905902,1743413451550,-527.24299382,0.00049315,120]
[356905903,1743413451559,-500.0,0.00049315,120]
[356905904,1743413451568,-500.0,0.00049315,120]
[356905905,1743413451577,-303.66957182,0.00049315,120]
[356905906,1743413451590,-462.18549998,0.00049315,120]
[356905907,1743413451600,-500.0,0.00049315,120]
[356905908,1743413451609,-500.0,0.00049315,120]
[356905909,1743413451618,-327.8351959,0.00049315,7]
[356905910,1743413451627,-500.0,0.00049315,120]
[356905911,1743413451637,-545.0034068,0.00049315,120]
[356905912,1743413451646,-500.0,0.00049315,120]
[356905913,1743413451655,-472.36653153,0.00049315,120]
[356905914,1743413451664,-1000.0,0.00049315,120]
[356905915,1743413451673,-500.0,0.00049315,120]
[356905916,1743413451683,-510.78764772,0.00049315,120]
[356905917,1743413451692,-508.86864867,0.00049315,120]
[356905918,1743413451702,-520.09315052,0.00049315,120]
[356905919,1743413451712,-440.09821255,0.00049315,120]
[356905920,1743413451722,-2011.76205237,0.00049315,30]
[356905921,1743413451731,-500.0,0.00049315,120]
[356905922,1743413451741,-1834.51720684,0.00049315,10]
[356905923,1743413451751,-536.19996247,0.00049315,120]
[356905924,1743413451760,-508.15429199,0.00049315,120]
[356905925,1743413451769,-635.98483394,0.00049315,120]
[356905926,1743413451779,-504.11146859,0.00049315,120]
[356905927,1743413451788,-500.0,0.00049315,120]
[356905928,1743413451797,-568.69153117,0.00049315,120]
[356905929,1743413451807,-455.87702377,0.00049315,120]
[356905930,1743413451816,-500.0,0.00049315,120]
[356905931,1743413451826,-517.15756562,0.00049315,120]
[356905932,1743413451838,-500.0,0.00049315,2]
[356905933,1743413451847,-500.0,0.00049315,120]
[356905934,1743413451856,-500.0,0.00049315,2]
[356905935,1743413451866,-500.0,0.00049315,2]
[356905936,1743413451875,-500.0,0.00049315,2]
[356905937,1743413451885,-369.26127957,0.00049315,2]
[356905938,1743413451894,-500.0,0.00049315,120]
[356905939,1743413451904,-362.86457897,0.00049315,120]
[356905940,1743413451913,-500.0,0.00049315,120]
[356905941,1743413451922,-322.85110369,0.00049315,120]
[356905942,1743413451932,-500.0,0.00049315,120]
[356905943,1743413451941,-500.0,0.00049315,120]
[356905944,1743413451951,-500.0,0.00049315,120]
[356905945,1743413451960,-381.25099399,0.00049315,120]
[356905946,1743413451969,-500.0,0.00049315,120]
[356905947,1743413451978,-151.0,0.00049315,14]
[356905948,1743413451988,-500.0,0.00049315,120]
[356905949,1743413451997,-500.0,0.00049315,120]
[356905950,1743413452006,-500.0,0.00049315,120]
[356905951,1743413452015,-500.0,0.00049315,120]
[356905952,1743413452024,-530.48735707,0.00049315,120]
[356905953,1743413452033,-524.89792759,0.00049315,120]
[356905954,1743413452042,-500.0,0.00049315,120]
[356905955,1743413452051,-551.58239491,0.00049315,120]
[356905956,1743413452061,-500.0,0.00049315,120]
[356905957,1743413452070,-503.86925464,0.00049315,30]
[356905958,1743413452079,-535.80090964,0.00049315,120]
[356905959,1743413452090,-473.96846627,0.00049315,120]
[356905960,1743413452099,-500.0,0.00049315,120]
[356905961,1743413452109,-520.1367433,0.00049315,120]
[356905962,1743413452117,-500.0,0.00049315,120]
[356905963,1743413452127,-500.0,0.00049315,120]
[356905964,1743413452135,-500.0,0.00049315,120]
[356905965,1743413452144,-515.30787612,0.00049315,120]
[356905966,1743413452154,-2501.298206,0.00049315,14]
[356905967,1743413452162,-500.0,0.00049315,120]
[356905968,1743413452171,-500.0,0.00049315,120]
[356905969,1743413452180,-500.0,0.00049315,120]
[356905970,1743413452189,-500.0,0.00049315,120]
[356905971,1743413452198,-500.0,0.00049315,120]
[356905972,1743413452207,-518.39227117,0.00049315,30]
[356905973,1743413452216,-500.0,0.00049315,120]
[356905974,1743413452225,-558.65710038,0.00049315,120]
[356905975,1743413452234,-534.08135926,0.00049315,120]
[356905976,1743413452243,-365.54186431,0.00049315,120]
[356905977,1743413452252,-500.0,0.00049315,120]
[356905978,1743413452261,-323.20619031,0.00049315,120]
[356905979,1743413452270,-604.27403266,0.00049315,120]
[356905980,1743413452279,-500.0,0.00049315,120]
[356905981,1743413452288,-559.13385634,0.00049315,120]
[356905982,1743413452297,-500.0,0.00049315,120]
[356905983,1743413452306,-500.0,0.00049315,120]
[356905984,1743413452415,-500.0,0.00049315,120]
[356905985,1743413452426,-500.0,0.00049315,120]
[356905986,1743413452435,-500.0,0.00049315,120]
[356905987,1743413452444,-151.0,0.00049315,14]
[356905988,1743413452453,-500.0,0.00049315,120]
[356905989,1743413452463,-500.0,0.00049315,120]
[356905990,1743413452472,-524.49967147,0.00049315,120]
[356905991,1743413452481,-500.0,0.00049315,120]
[356905992,1743413452490,-500.0,0.00049315,120]
[356905993,1743413452498,-510.51321043,0.00049315,120]
[356905994,1743413452507,-500.0,0.00049315,120]
[356905995,1743413452516,-522.57694861,0.00049315,120]
[356905996,1743413452525,-513.69253948,0.00049315,120]
[356905997,1743413452534,-532.98979563,0.00049315,120]
[356905998,1743413452543,-469.67898366,0.00049315,120]
[356905999,1743413452552,-537.40689904,0.00049315,120]
[356906000,1743413452561,-500.0,0.00049315,120]
[356906001,1743413452570,-500.0,0.00049315,120]
[356906002,1743413452579,-500.0,0.00049315,120]
[356906003,1743413452590,-1250.57,0.00049315,120]
[356906004,1743413452599,-500.0,0.00049315,120]
[356906005,1743413452607,-511.70745896,0.00049315,120]
[356906006,1743413452617,-357.26757261,0.00049315,120]
[356906007,1743413452625,-500.0,0.00049315,120]
[356906008,1743413452634,-500.0,0.00049315,120]
[356906009,1743413452643,-502.99887677,0.00049315,120]
[356906010,1743413452652,-500.0,0.00049315,120]
[356906011,1743413452661,-555.60208556,0.00049315,120]
[356906012,1743413452670,-500.0,0.00049315,120]
[356906013,1743413452680,-500.0,0.00049315,120]
[356906014,1743413452689,-425.65870934,0.00049315,120]
[356906015,1743413452698,-500.0,0.00049315,120]
[356906016,1743413452707,-500.0,0.00049315,120]
[356906017,1743413452716,-500.0,0.00049315,120]
[356906018,1743413452724,-500.0,0.00049315,120]
[356906019,1743413452733,-500.0,0.00049315,120]
[356906020,1743413452742,-500.0,0.00049315,120]
[356906021,1743413452751,-500.0,0.00049315,120]
[356906022,1743413452760,-506.67138926,0.00049315,120]
[356906023,1743413452769,-537.60656177,0.00049315,120]
[356906024,1743413452777,-500.0,0.00049315,120]
[356906025,1743413452787,-500.0,0.00049315,120]
[356906026,1743413452795,-573.21893925,0.00049315,120]
[356906027,1743413452804,-500.0,0.00049315,120]
[356906028,1743413452813,-500.0,0.00049315,120]
[356906029,1743413452823,-510.36643184,0.00049315,120]
[356906030,1743413452832,-500.0,0.00049315,120]
[356906031,1743413452843,-219.064945,0.00049315,14]
[356906032,1743413452851,-404.26617225,0.00049315,120]
[356906033,1743413452861,-500.0,0.00049315,120]
[356906034,1743413452870,-500.0,0.00049315,120]
[356906035,1743413452880,-500.0,0.00049315,120]
[356906036,1743413452889,-500.0,0.00049315,120]
[356906037,1743413452898,-500.0,0.00049315,120]
[356906038,1743413452907,-2000.0,0.00049315,2]
[356906039,1743413452917,-546.61518755,0.00049315,120]
[356906040,1743413452926,-502.06110967,0.00049315,120]
[356906041,1743413452935,-506.04354399,0.00049315,120]
[356906042,1743413452945,-606.92913788,0.00049315,120]
[356906043,1743413452953,-511.53389836,0.00049315,120]
[356906044,1743413452962,-502.03584135,0.00049315,120]
[356906045,1743413452971,-504.03383195,0.00049315,120]
[356906046,1743413452980,-500.0,0.00049315,120]
[356906047,1743413452989,-500.0,0.00049315,120]
[356906048,1743413452998,-1783.27,0.00049315,120]
[356906049,1743413453006,-500.0,0.00049315,120]
[356906050,1743413453015,-500.0,0.00049315,120]
[356906051,1743413453024,-500.0,0.00049315,120]
[356906052,1743413453033,-598.0145092,0.00049315,120]
[356906053,1743413453042,-500.0,0.00049315,120]
[356906054,1743413453051,-500.0,0.00049315,2]
[356906055,1743413453060,-500.0,0.00049315,30]
[356906056,1743413453069,-500.0,0.00049315,120]
[356906057,1743413453079,-152.237324,0.00049315,14]
[356906058,1743413453088,-500.0,0.00049315,120]
[356906059,1743413453097,-500.0,0.00049315,120]
[356906060,1743413453106,-500.0,0.00049315,120]
[356906061,1743413453115,-500.0,0.00049315,120]
[356906062,1743413453124,-504.79728623,0.00049315,120]
[356906063,1743413453132,-500.0,0.00049315,120]
[356906064,1743413453142,-500.0,0.00049315,120]
[356906065,1743413453151,-500.0,0.00049315,120]
[356906066,1743413453160,-500.0,0.00049315,30]
[356906067,1743413453170,-500.0,0.00049315,120]
[356906068,1743413453179,-554.84324471,0.00049315,120]
[356906069,1743413453188,-500.0,0.00049315,120]
[356906070,1743413453197,-278.27670528,0.00049315,120]
[356906071,1743413453206,-500.0,0.00049315,120]
[356906072,1743413453215,-500.0,0.00049315,120]
[356906073,1743413453224,-500.0,0.00049315,120]
[356906074,1743413453233,-151.0,0.00049315,14]
[356906075,1743413453243,-500.0,0.00049315,120]
[356906076,1743413453251,-500.0,0.00049315,120]
[356906077,1743413453260,-500.0,0.00049315,120]
[356906078,1743413453269,-1125.023096,0.00049315,14]
[356906079,1743413453278,-1125.023096,0.00049315,14]
[356906080,1743413453286,-500.0,0.00049315,120]
[356906081,1743413453295,-500.0,0.00049315,120]
[356906082,1743413453304,-500.0,0.00049315,120]
[356906083,1743413453314,-516.50562819,0.00049315,120]
[356906084,1743413453323,-500.0,0.00049315,120]
[356906085,1743413453334,-500.0,0.00049315,120]
[356906086,1743413453346,-195.47305267,0.00049315,120]
[356906087,1743413453355,-626.63,0.00049315,120]
[356906088,1743413453365,-80534.96,0.00049315,7]
[356906089,1743413453374,-500.0,0.00049315,120]
[356906090,1743413453383,-2446.57,0.00049315,120]
[356906091,1743413453392,-500.0,0.00049315,120]
[356906092,1743413453401,-500.0,0.00049315,120]
[356906093,1743413453415,-500.0,0.00049315,120]
[356906094,1743413453429,-555.55699854,0.00049315,120]
[356906095,1743413453443,-545.14591086,0.00049315,120]
[356906096,1743413453456,-472.3415014,0.00049315,2]
[356906097,1743413453466,-500.0,0.00049315,120]
[356906098,1743413453478,-175.39861877,0.00049315,120]
[356906099,1743413453491,-500.0,0.00049315,120]
[356906100,1743413453504,-158.9240504,0.00049315,120]
[356906101,1743413453517,-517.38969021,0.00049315,120]
[356906102,1743413453530,-500.0,0.00049315,120]
[356906103,1743413453543,-500.0,0.00049315,120]
[356906104,1743413453556,-178.23771401,0.00049315,120]
[356906105,1743413453568,-638.71877799,0.00049315,120]
[356906106,1743413453580,-500.0,0.00049315,120]
[356906107,1743413453592,-551.67083523,0.00049315,120]
[356906108,1743413453602,-500.0,0.00049315,120]
[356906109,1743413453615,-500.0,0.00049315,120]
[356906110,1743413453629,-571.89,0.00049315,120]
[356906111,1743413453640,-500.0,0.00049315,120]
[356906112,1743413453653,-500.0,0.00049315,120]
[356906113,1743413453665,-500.0,0.00049315,120]
[356906114,1743413453677,-500.0,0.00049315,120]
[356906115,1743413453691,-190.51261101,0.00049315,120]
[356906116,1743413453704,-500.0,0.00049315,120]
[356906117,1743413453716,-500.0,0.00049315,120]
[356906118,1743413453728,-500.0,0.00049315,120]
[356906119,1743413453742,-500.0,0.00049315,120]
[356906120,1743413453753,-511.95096964,0.00049315,120]
[356906121,1743413453766,-500.0,0.00049315,120]
[356906122,1743413453777,-500.0,0.00049315,120]
[356906123,1743413453789,-500.0,0.00049315,120]
[356906124,1743413453801,-512.26073982,0.00049315,120]
[356906125,1743413453814,-500.0,0.00049315,30]
[356906126,1743413453828,-500.0,0.00049315,120]
[356906127,1743413453840,-500.0,0.00049315,120]
[356906128,1743413453851,-500.0,0.00049315,120]
[356906129,1743413453862,-261.33685269,0.00049315,120]
[356906130,1743413453874,-500.0,0.00049315,120]
[356906131,1743413453884,-512.32721997,0.00049315,120]
[356906132,1743413453894,-245.783158,0.00049315,14]
[356906133,1743413453905,-500.0,0.00049315,120]
[356906134,1743413453916,-184.33553807,0.00049315,120]
[356906135,1743413453931,-500.0,0.00049315,120]
[356906136,1743413453944,-245.783158,0.00049315,14]
[356906137,1743413453954,-500.0,0.00049315,120]
[356906138,1743413453965,-161.7927465,0.00049315,120]
[356906139,1743413453975,-500.0,0.00049315,120]
[356906140,1743413453986,-192.76099169,0.00049315,120]
[356906141,1743413453999,-500.0,0.00049315,120]
[356906142,1743413454010,-500.0,0.00049315,120]
[356906143,1743413454020,-560.61,0.00049315,120]
[356906144,1743413454032,-233.953209,0.00049315,14]
[356906145,1743413454042,-1663.07,0.00049315,120]
[356906146,1743413454052,-233.953209,0.00049315,14]
[356906147,1743413454063,-194.30105633,0.00049315,120]
[356906148,1743413454074,-752.19,0.00049315,120]
[356906149,1743413454085,-500.0,0.00049315,120]
[356906150,1743413454095,-500.0,0.00049315,120]
[356906151,1743413454106,-537.31890081,0.00049315,120]
[356906152,1743413454117,-500.0,0.00049315,120]
[356906153,1743413454128,-550.48292641,0.00049315,120]
[356906154,1743413454139,-517.26870327,0.00049315,120]
[356906155,1743413454149,-500.0,0.00049315,120]
[356906156,1743413454160,-500.0,0.00049315,120]
[356906157,1743413454171,-512.88870502,0.00049315,120]
[356906158,1743413454183,-500.0,0.00049315,120]
[356906159,1743413454193,-538.70188409,0.00049315,120]
[356906160,1743413454204,-500.0,0.00049315,120]
[356906161,1743413454214,-523.79599874,0.00049315,120]
[356906162,1743413454225,-500.0,0.00049315,120]
[356906163,1743413454235,-500.0,0.00049315,7]
[356906164,1743413454246,-166.02976233,0.00049315,120]
[356906165,1743413454257,-500.0,0.00049315,120]
[356906166,1743413454268,-598.38784493,0.00049315,120]
[356906167,1743413454278,-500.0,0.00049315,120]
[356906168,1743413454289,-500.0,0.00049315,120]
[356906169,1743413454300,-1090.88,0.00049315,120]
[356906170,1743413454312,-500.0,0.00049315,120]
[356906171,1743413454322,-506.78389942,0.00049315,120]
[356906172,1743413454335,-500.0,0.00049315,120]
[356906173,1743413454347,-500.0,0.00049315,120]
[356906174,1743413454358,-500.0,0.00049315,120]
[356906175,1743413454368,-308.40982503,0.00049315,120]
[356906176,1743413454379,-600.50772735,0.00049315,120]
[356906177,1743413454390,-504.625111,0.00049315,120]
[356906178,1743413454401,-500.0,0.00049315,120]
[356906179,1743413454413,-500.0,0.00049315,120]
[356906180,1743413454424,-517.72957008,0.00049315,120]
[356906181,1743413454435,-500.0,0.00049315,120]
[356906182,1743413454445,-546.33715577,0.00049315,120]
[356906183,1743413454456,-3356.5,0.00049315,2]
[356906184,1743413454467,-500.0,0.00049315,120]
[356906185,1743413454478,-632.35106132,0.00049315,120]
[356906186,1743413454489,-512.55668413,0.00049315,120]
[356906187,1743413454499,-515.04355217,0.00049315,120]
[356906188,1743413454510,-500.0,0.00049315,120]
[356906189,1743413454521,-500.0,0.00049315,120]
[356906190,1743413454532,-500.0,0.00049315,120]
[356906191,1743413454542,-517.60971859,0.00049315,120]
[356906192,1743413454553,-532.98755396,0.00049315,120]
[356906193,1743413454563,-500.0,0.00049315,120]
[356906194,1743413454575,-520.98607049,0.00049315,120]
[356906195,1743413454586,-500.0,0.00049315,120]
[356906196,1743413454597,-267.15569953,0.00049315,120]
[356906197,1743413454608,-256.3685706,0.00049315,100]
[356906198,1743413454619,-548.65188486,0.00049315,120]
[356906199,1743413454630,-500.0,0.00049315,2]
[356906200,1743413454641,-500.0,0.00049315,120]
[356906201,1743413454651,-315.75149398,0.00049315,120]
[356906202,1743413454661,-500.0,0.00049315,120]
[356906203,1743413454672,-500.0,0.00049315,120]
[356906204,1743413454812,-574.4965661,0.00049315,120]
[356906205,1743413454831,-500.77111947,0.00049315,2]
[356906206,1743413454842,-527.04512115,0.00049315,120]
[356906207,1743413454852,-500.0,0.00049315,120]
[356906208,1743413454862,-524.11886998,0.00049315,120]
[356906209,1743413454871,-500.92738405,0.00049315,2]
[356906210,1743413454881,-500.0,0.00049315,120]
[356906211,1743413454890,-500.0,0.00049315,120]
[356906212,1743413454899,-527.8195042,0.00049315,120]
[356906213,1743413454909,-500.0,0.00049315,120]
[356906214,1743413454920,-500.0,0.00049315,120]
[356906215,1743413454929,-213.5712576,0.00049315,120]
[356906216,1743413454939,-1000.0,0.00049315,2]